Cogmind - Beta 11.1 @@@ ROGUE MODE // 2022.10.18 @ 22:38:55 Player: Beepinex Result: Self-destructed Performance ------------- Evolutions (2) 1000 Regions Visited (5) 1000 Robots Destroyed (40) 200 Value Destroyed (995) 995 Prototype IDs (6) 120 Alien Tech Used (0) 0 Bonus (300) 300 TOTAL SCORE: 3615 Bonus ------- Aligned with FarCom 300 Cogmind --------- Core Integrity 357/550 Matter 280/300 Energy 104/250 System Corruption 2% Temperature Cool (27) Movement Walking (110) Location -8/Materials Parts ------- > --- POWER (1) -------- Ion Engine > --- PROPULSION (4) --- Aluminum Leg Aluminum Leg VSS Leg > --- UTILITY (4) ------ Improved Heat Sink Medium Storage Unit Advanced Targeting Computer Hacking Suite > --- WEAPON (2) ------- Particle Gun Heavy Particle Cannon > --- INVENTORY (10) --- Carbon-fiber Leg Compact Battery (200) Advanced Visual Processing Unit Advanced Targeting Computer Light Armor Plating AWS/Thermal Improved Assault Rifle Datajack Peak State ------------ > --- POWER ------------ Light Nuclear Core > --- PROPULSION ------- Aluminum Leg Aluminum Leg Aluminum Leg VSS Leg > --- UTILITY ---------- Improved Heat Sink Medium Storage Unit Advanced Targeting Computer Hacking Suite > --- WEAPON ----------- Particle Gun Improved Assault Rifle > --- INVENTORY -------- Ion Engine Medium Storage Unit Compact Battery Advanced Visual Processing Unit Advanced Targeting Computer Light Armor Plating AWS/Thermal Assault Rifle Datajack [Rating: 27] Favorites ----------- Power Light Ion Engine Engine Light Ion Engine Power Core Light Nuclear Core Propulsion Aluminum Leg Treads Light Treads Leg Aluminum Leg Utility Medium Storage Unit Device Improved Heat Sink Storage Medium Storage Unit Processor Advanced Targeting Computer Hackware Hacking Suite Weapon Particle Gun Energy Gun Particle Gun Energy Cannon EM Pulse Cannon Ballistic Gun Assault Rifle Build | -11 -10 -10 -10 -9 -8 ------- Run | Scr Mat Min Exi Min Mat Slots Evolved 4 | . . . . . 4 Power . | . . . . . . Propulsion 2 | . . . . . 2 Utility 2 | . . . . . 2 Weapon . | . . . . . . Parts Attached 32 | 6 3 1 . . 22 Power 4 | 1 . 1 . . 2 Engine 3 | 1 . 1 . . 1 Core 1 | . . . . . 1 Reactor . | . . . . . . Propulsion 8 | 2 . . . . 6 Treads 1 | . . . . . 1 Leg 7 | 2 . . . . 5 Wheel . | . . . . . . Hover . | . . . . . . Flight . | . . . . . . Utility 11 | 1 2 . . . 8 Device 4 | . 1 . . . 3 Storage 3 | 1 1 . . . 1 Processor 3 | . . . . . 3 Hackware 1 | . . . . . 1 Protection . | . . . . . . Artifact . | . . . . . . Weapon 9 | 2 1 . . . 6 Energy Gun 3 | . 1 . . . 2 Energy Cannon 2 | . . . . . 2 Ballistic Gun 4 | 2 . . . . 2 Ballistic Cannon . | . . . . . . Launcher . | . . . . . . Special Weapon . | . . . . . . Impact Weapon . | . . . . . . Slashing Weapon . | . . . . . . Piercing Weapon . | . . . . . . Special Melee Weapon . | . . . . . . Unidentified Prototypes 1 | . . . . . 1 Parts Lost 8 | . . 2 . . 6 Power 2 | . . 1 . . 1 Propulsion 3 | . . . . . 3 Utility 2 | . . 1 . . 1 Weapon 1 | . . . . . 1 Highest Loss Streak 2 | . . 2 . . 2 To Critical Strikes . | . . . . . . Average Slot Usage (%) 92 | . 100 74 85 85 92 Engine 5 | . 14 1 14 14 2 Core 4 | . . . . . 6 Leg 28 | . 28 28 28 28 29 Device 9 | . 14 1 . . 10 Storage 10 | . 14 14 14 14 9 Processor 7 | . . . . . 10 Hackware 3 | . . . . . 5 Energy Gun 9 | . 8 14 14 14 8 Energy Cannon 3 | . . . . . 5 Ballistic Gun 7 | . 19 14 14 14 3 Naked Turns . | . . . . . . Heaviest Build 25 | 11 19 18 18 18 25 Greatest Support 40 | 20 20 20 20 20 40 Greatest Overweight (x) 3 | 3 . . . . 2 Average Overweight (x) . | . . . . . . Largest Inventory Capacity 10 | 8 10 10 10 10 10 Average Capacity 9 | 7 9 10 10 10 10 Most Carried 10 | 3 10 10 10 10 10 Average Carried 8 | 2 6 9 9 10 9 Final Capacity 10 | 8 10 10 10 10 10 Final Carried 10 | 3 10 9 10 10 9 Class Distribution -------------------- 84% | Mutant 15% | Scavenger-Mutant Dominant Class ---------------- Mutant | -10/Materials Mutant | -10/Mines Mutant | -10/Exiles Mutant | -9/Mines Mutant | -8/Materials Resources | -11 -10 -10 -10 -9 -8 ----------- Run | Scr Mat Min Exi Min Mat Matter Collected 678 | 46 99 88 156 . 289 Remotely . | . . . . . . Salvage Created 1710 | 80 165 139 . . 1326 Parts 83 | 8 8 6 . . 61 Haulers Intercepted 3 | . 1 . . . 2 Recyclers Shooed 2 | . . 1 . . 1 Parts Field Recycled . | . . . . . . Retrieved Matter . | . . . . . . Parts Self-Destructed . | . . . . . . Prevented . | . . . . . . Kills | -11 -10 -10 -10 -9 -8 ------- Run | Scr Mat Min Exi Min Mat Combat Hostiles Destroyed 24 | . 2 2 . . 20 Guns 19 | . 2 2 . . 15 Cannons 4 | . . . . . 4 AOE 1 | . . . . . 1 Classes Destroyed 8 | 2 3 . . . 3 Worker 1 | . . . . . 1 Tunneler 3 | 1 . 2 . . . Hauler 3 | . 1 . . . 2 Recycler 4 | 1 . . . . 3 Watcher 5 | . 1 . . . 4 Swarmer 7 | . . . . . 7 Grunt 9 | . 2 2 . . 5 Sentry 8 | . . . . . 8 Best Kill Streak 9 | 2 2 2 . . 9 Combat Bots Only 8 | . 2 1 . . 8 Max Kills in Single Turn 1 | 1 1 1 . . 1 Gunslinging . | . . . . . . Exploded 1 | . . . . . 1 Melee . | . . . . . . Uniques/NPCs Destroyed . | . . . . . . Combat | -11 -10 -10 -10 -9 -8 -------- Run | Scr Mat Min Exi Min Mat Damage Taken 1562 | . 158 127 . . 1277 Core 313 | . 69 51 . . 193 Absorbed by Shields 10 | . . . . . 10 Core Remaining (%) 76 | 100 . . . 52 . Volleys Fired 135 | 5 18 12 . . 100 Largest 2 | 1 2 2 . . 2 Hottest 140 | 20 85 85 . . 140 Shots Fired 200 | 5 20 22 . . 153 Gun 179 | 5 20 22 . . 132 Cannon 21 | . . . . . 21 Launcher . | . . . . . . Special . | . . . . . . Kinetic 73 | 5 16 12 . . 40 Thermal 119 | . 4 10 . . 105 Explosive . | . . . . . . Electromagnetic 8 | . . . . . 8 Robot Hit Streak 12 | 2 12 7 . . 12 Robot Miss Streak 4 | 1 2 4 . . 3 Penetration Max . | . . . . . . Secondary Targets 1 | . . . . . 1 Max Gunslinging Chain 1 | . . . . . 1 Shots Hit Robots 153 | 3 16 15 . . 119 Core Hits 64 | 2 7 8 . . 47 Critical Kills . | . . . . . . Critical Parts Destroyed . | . . . . . . Critical Strikes 3 | . . . . . 3 Burn 3 | . . . . . 3 Melee Attacks . | . . . . . . Impact . | . . . . . . Slashing . | . . . . . . Piercing . | . . . . . . Sneak Attacks . | . . . . . . Combat Hostiles . | . . . . . . Follow-up Attacks . | . . . . . . Damage Inflicted 2714 | 41 224 233 . . 2216 Guns 2047 | 41 224 233 . . 1549 Cannons 517 | . . . . . 517 Explosions 137 | . . . . . 137 Melee . | . . . . . . Ramming 13 | . . . . . 13 Kinetic 833 | 41 189 128 . . 475 Thermal 1667 | . 35 105 . . 1527 Explosive . | . . . . . . Electromagnetic 201 | . . . . . 201 Impact . | . . . . . . Slashing . | . . . . . . Piercing . | . . . . . . Highest Corruption 2 | . . . . . 2 Average Corruption 2 | . . . . . 2 Corruption Purged . | . . . . . . Corruption Blocked . | . . . . . . Effects 4 | . . . . . 4 Message Errors 1 | . . . . . 1 Matter Fused 2 | . . . . . 2 Heat Flow Errors 1 | . . . . . 1 Overload Shots . | . . . . . . Overflow Damage 55 | . . . . . 55 Projectiles 22 | . . . . . 22 Explosions 33 | . . . . . 33 Melee . | . . . . . . Knockbacks . | . . . . . . Impact . | . . . . . . Kinetic . | . . . . . . Secondary . | . . . . . . Self-Inflicted Damage 78 | . . . . . 78 Shots 2 | . . . . . 2 Rammed . | . . . . . . Targets Rammed 3 | . . . . . 3 Kicked 3 | . . . . . 3 Crushed . | . . . . . . Highest Temperature 251 | . 72 251 . . 154 Average Temperature 70 | . 30 132 . . 41 Received Heat Transfer 702 | . 111 90 . . 501 Siege Activations . | . . . . . . Robots Corrupted . | . . . . . . Combat Hostiles . | . . . . . . Parts Fried 2 | . . . . . 2 Impact Corruptions . | . . . . . . Robots Melted 1 | . . . . . 1 Combat Hostiles . | . . . . . . Parts Melted 5 | . . 1 . . 4 Heat Transferred 3689 | . 74 259 . . 3356 Parts Sabotaged . | . . . . . . Parts Stolen . | . . . . . . Parts Stripped . | . . . . . . Power Chain Reactions 3 | . . . . . 3 Missiles Intercepted . | . . . . . . Alert | -11 -10 -10 -10 -9 -8 ------- Run | Scr Mat Min Exi Min Mat Peak Influence 287 | 10 120 96 . . 287 Initial 46 | . 6 46 . . . Average 71 | 4 78 81 . . 73 Maximum Alert Level 1 | . . . . . 1 Low Security (%) 95 | 100 100 100 . 100 93 Level 1 4 | . . . . . 6 Level 2 . | . . . . . . Level 3 . | . . . . . . Level 4 . | . . . . . . Level 5 . | . . . . . . High Security . | . . . . . . Max Security . | . . . . . . Squads Dispatched 5 | . 2 . . . 3 Investigation 3 | . 1 . . . 2 Extermination . | . . . . . . Reinforcement 2 | . 1 . . . 1 Assault . | . . . . . . Garrison . | . . . . . . Intercept . | . . . . . . Searches Triggered . | . . . . . . Construction Impeded . | . . . . . . Haulers Reinforced . | . . . . . . Active Scanning Responses . | . . . . . . Cargo Convoy Interrupts . | . . . . . . Stealth | -11 -10 -10 -10 -9 -8 --------- Run | Scr Mat Min Exi Min Mat Distress Signals 6 | . 1 . . . 5 Communications Jammed . | . . . . . . Distress Signals . | . . . . . . Times Spotted 44 | . 7 1 . . 36 Peak Tracking Total 7 | . 3 1 . . 7 Tactical Retreats 4 | . 1 . . . 3 Traps | -11 -10 -10 -10 -9 -8 ------- Run | Scr Mat Min Exi Min Mat Traps Triggered 3 | . 1 . . . 2 Indirectly . | . . . . . . Trap Hack Attempts . | . . . . . . Triggered . | . . . . . . Disarmed . | . . . . . . Reprogrammed . | . . . . . . Reused . | . . . . . . Traps Extracted . | . . . . . . Installed . | . . . . . . Triggered 1 | . . 1 . . . Machines | -11 -10 -10 -10 -9 -8 ---------- Run | Scr Mat Min Exi Min Mat Machines Disabled . | . . . . . . Max in Single Turn . | . . . . . . Machines Sabotaged . | . . . . . . Garrisons Compromised . | . . . . . . Overloaded Fab Kills . | . . . . . . Hacking | -11 -10 -10 -10 -9 -8 --------- Run | Scr Mat Min Exi Min Mat Machines Accessed 14 | . 2 . . . 12 Terminals 11 | . 2 . . . 9 Fabricators . | . . . . . . Repair Stations . | . . . . . . Recycling Units 1 | . . . . . 1 Scanalyzers 2 | . . . . . 2 Garrison Access . | . . . . . . Total Hacks 56 | . 5 . . . 51 Successful 39 | . 2 . . . 37 Failed 17 | . 3 . . . 14 Catastrophic 1 | . . . . . 1 Database Lockouts . | . . . . . . Manual 37 | . 2 . 1 . 34 Terminals 45 | . 5 . . . 40 Fabricators . | . . . . . . Repair Stations . | . . . . . . Recycling Units 3 | . . . . . 3 Scanalyzers 8 | . . . . . 8 Garrison Access . | . . . . . . Terminal Hacks 19 | . 1 . . . 18 Part Schematic 2 | . . . . . 2 Robot Analysis 3 | . . . . . 3 Prototype ID Bank 3 | . . . . . 3 Terminal Index 1 | . . . . . 1 Recycling Unit Index 1 | . . . . . 1 Unreport Threat 3 | . . . . . 3 Recall Investigation 2 | . . . . . 2 Recall Reinforcements 1 | . . . . . 1 Zone Layout 3 | . 1 . . . 2 Fabricator Hacks . | . . . . . . Repair Station Hacks . | . . . . . . Recycling Unit Hacks . | . . . . . . Scanalyzer 8 | . . . . . 8 Insert Component 4 | . . . . . 4 Analyze 4 | . . . . . 4 Garrison Access Hacks . | . . . . . . Unauthorized Hacks 12 | . 1 . . . 11 Terminals 9 | . 1 . . . 8 Track 3 | . . . . . 3 Assimilate 1 | . . . . . 1 Botnet 5 | . 1 . . . 4 Fabricators . | . . . . . . Repair Stations . | . . . . . . Recycling Units 3 | . . . . . 3 Reject 1 | . . . . . 1 Recyclers 1 | . . . . . 1 Mask 1 | . . . . . 1 Scanalyzers . | . . . . . . Garrison Access . | . . . . . . Data Cores Recovered . | . . . . . . Used . | . . . . . . Hacking Detections 13 | . 2 . . . 11 Full Trace Events 2 | . . . . . 2 Feedback Events . | . . . . . . Feedback Blocked . | . . . . . . Robot Schematics Acquired . | . . . . . . Robots Built . | . . . . . . Authchips . | . . . . . . Time . | . . . . . . Total Robot Build Rating . | . . . . . . Part Schematics Acquired 5 | . . . . . 5 Parts Built . | . . . . . . Authchips . | . . . . . . Time . | . . . . . . Total Part Build Rating . | . . . . . . Parts Repaired . | . . . . . . Time . | . . . . . . Parts Recycled . | . . . . . . Recycled Matter . | . . . . . . Retrieved Matter . | . . . . . . Retrieved Components . | . . . . . . Parts Scanalyzed 4 | . . . . . 4 Part Schematics Acquired 3 | . . . . . 3 Parts Damaged . | . . . . . . Bothacking | -11 -10 -10 -10 -9 -8 ------------ Run | Scr Mat Min Exi Min Mat Used RIF Installer . | . . . . . . Robots Hacked . | . . . . . . Non-combat . | . . . . . . Combat . | . . . . . . Robot Hacks Applied . | . . . . . . Relay Couplers Released . | . . . . . . Fabnet Peak Effective % . | . . . . . . Robots Rewired . | . . . . . . Allies Hacked . | . . . . . . Hacks Repelled . | . . . . . . Allies | -11 -10 -10 -10 -9 -8 -------- Run | Scr Mat Min Exi Min Mat Total Allies 3 | . . 2 . . 1 Largest Group 2 | . . 2 2 . 1 Highest-Rated Group 57 | . . 57 57 . 10 Highest-Rated Ally 31 | . . 31 31 . 10 Total Orders . | . . . . . . Ally Attacks . | . . . . . . Total Damage . | . . . . . . Kills . | . . . . . . Allies Corrupted . | . . . . . . Allies Melted . | . . . . . . Intel | -11 -10 -10 -10 -9 -8 ------- Run | Scr Mat Min Exi Min Mat Robot Analysis Total 2 | . . . . . 2 Derelict Logs Recovered . | . . . . . . Drone Launches . | . . . . . . Drone Recoveries . | . . . . . . Exploration | -11 -10 -10 -10 -9 -8 ------------- Run | Scr Mat Min Exi Min Mat Turns Passed 2623 | 67 362 93 278 28 1795 Spaces Moved 1508 | 42 247 49 231 17 922 Core 17 | 17 . . . . . Treads 11 | . . . . . 11 Legs 1480 | 25 247 49 231 17 911 Wheels . | . . . . . . Hover . | . . . . . . Flight . | . . . . . . Fastest Speed 50 | 50 120 120 120 120 105 Average Speed 119 | 102 120 120 120 120 119 Slowest Speed 260 | 200 120 120 120 120 260 Overloaded Moves . | . . . . . . Propulsion Burnouts . | . . . . . . Robots Hopped . | . . . . . . Cave-ins Triggered . | . . . . . . Exploration Rate (%) 32 | 3 31 17 61 8 73 Regions Visited 5 Branch Regions 3 Pre-discovered Areas . | . . . . . . Known Exits Taken . | . . . . . . Unknown Exits Taken 5 | 1 1 1 1 1 . Scrap Searched . | . . . . . . Spaces Dug . | . . . . . . Terrain Destroyed 13 | . . . . . 13 Melee . | . . . . . . Projectile 1 | . . . . . 1 AOE 12 | . . . . . 12 Terrain Rammed . | . . . . . . Walls Destroyed . | . . . . . . Machines Disabled . | . . . . . . Actions | -11 -10 -10 -10 -9 -8 --------- Run | Scr Mat Min Exi Min Mat Total 2134 | 61 292 61 232 24 1464 Wait 407 | . 15 . . 8 384 Move 1503 | 41 246 48 230 16 922 Hop . | . . . . . . Pick Up 38 | 9 9 . 1 . 19 Fast Attach 2 | . . . . . 2 Attach 25 | 6 1 1 . . 17 Detach 1 | . . . . . 1 Swap 5 | . 2 . . . 3 Drop 15 | . 1 . 1 . 13 Fire 135 | 5 18 12 . . 100 Melee . | . . . . . . Ram . | . . . . . . Kick 3 | . . . . . 3 Crush . | . . . . . . Escape Stasis . | . . . . . . Rewire . | . . . . . . Trap . | . . . . . . Miscellaneous . | . . . . . . Route ------- -11/Scrapyard -10/Materials (discovered 2 exits: [*Mat] / [*Min]) -10/Mines (discovered 3 exits: [*Mat x2] / *Exi) -10/Exiles -9/Mines -8/Materials (discovered 3 exits: [*Fac x2] / [*Sto]) History --------- Turn | Location | Event 8 | -11/Scrapyard | Discovered new exit (range 15) 68 | -11/Scrapyard | Entered Materials 236 | -10/Materials | Discovered new exit (range 16) 318 | -10/Materials | Build established: Mutant 419 | -10/Materials | Discovered new exit (range 10) 430 | -10/Materials | Entered Mines 474 | -10/Mines | Discovered new exit (range 5) 480 | -10/Mines | Discovered new exit (range 11) 517 | -10/Mines | Deemed a non-threat by the Exiles lab entrance 517 | -10/Mines | Discovered new exit (range 5) 523 | -10/Mines | Entered Exiles 523 | -10/Exiles | Accompanied by 2 allies 552 | -10/Exiles | Met 8R-AWN 553 | -10/Exiles | Led the pair of lost Derelicts to a safe place 573 | -10/Exiles | Met EX-HEX 613 | -10/Exiles | Met EX-BIN 628 | -10/Exiles | Aligned with FarCom system 629 | -10/Exiles | Given EX-Vault access code 657 | -10/Exiles | Opened EX-Vault 662 | -10/Exiles | Found Prototype Energy Gun 687 | -10/Exiles | Warned to stay clear of 0b10 Research branches 727 | -10/Exiles | Met EX-DEC 790 | -10/Exiles | Discovered new exit (range 10) 801 | -10/Exiles | Left Exiles lab with AWS/Thermal 801 | -10/Exiles | Entered Mines 810 | -9/Mines | Discovered new exit (range 5) 829 | -9/Mines | Entered Materials 829 | -8/Materials | Evolved 4 slots: Propulsion x2, Utility x2 1116 | -8/Materials | Build established: Scavenger-Mutant 1129 | -8/Materials | Destroyed 8 combat bots 1377 | -8/Materials | Discovered new exit (range 14) 1523 | -8/Materials | Build established: Mutant 1624 | -8/Materials | Discovered new exit (range 11) 2422 | -8/Materials | Discovered new exit (range 14) 2624 | -8/Materials | Self-destructed Last Messages --------------- Downloaded map data. 02424_ |QMLHKTN=YKKZSHCV KEH2 02513_ System corrupted: Heat flow error (+124). 02529_ Destroyed Imp. Hover Unit. 02554_ System corrupted: Matter fused (-8). 02561_ K-01 Serf cleans the Terminal. 02571_ Connecting with Terminal... 02571_ ALERT: Suspicious activity at Terminal M006. Dispatching Investigation squad. 02574_ K-01 Serf cleans the Terminal. 02579_ W-25 Informer sends out distress signal. 02594_ Critical hit (Burn: +37). 02597_ G-47 Trooper destroyed. 02601_ Critical hit (Burn: +37). 02601_ Lgt. Nuclear Core destroyed. 02609_ K-01 Serf collects debris. 02619_ Kicked G-47 Trooper out of the way. 02619_ K-01 Serf cleans the Terminal. 02621_ G-47 Trooper destroyed. 02622_ K-01 Serf cleans the Terminal. Map ----- +----------------------------------------------------+ | | | | | | | | | ?????????????????????????????????????????????????? | | ?????????????????????????????????????????????????? | | ?????????????????????????????????????????????????? | | ?????????????????????????????????????????????????? | | ?????????????????????????????????????????????????? | | ???????????????????##########????????????????????? | | ???####????????????# #????????????????????? | | ??## [ ####+#?????# """ #????????????????????? | | ??? ?????+ """ #????????????????????? | | ??????? ####### """ #????????????????????? | | ??????????# #?????# #????????????????????? | | ??????????# #?????# """ #####????????????????? | | ??????????# #?????# """ # ##########???????? | | ??????????# #?????# """ # < # #???????? | | ??????????# #?????# # # """ #???????? | | ########## ############w### # """ #???????? | | # """ #???????? | | + #???????? | | # """ #???????? | | ############################ # """ #???????? | | ??????????????????# = # # """ #???????? | | ??????????????????# !%@ # # [#???????? | | ??????????????????# """g "" # ##########???????? | | ??????????????????# """ ""k# #????????????????? | | ??????????????????# """ T"%+ #????????????##### | | ??????????????????# "" # #??????????? | | ??????????????????# "" #####??????????# ??? | | ??????????????????# #??????????????# #??? | | ??????????????????##+########??????????????# #??? | | ???????????????????# #?????????????????????# #??? | | ??????????########?# #?????????????????????# #??? | | ????#?????#//!!!!#?# ###########???????????# #??? | | ????# r???#//!!!!#?# ## #???????????# #??? | | ????# ???# #?# ## [[ #???????????# #??? | | ????+ ### ### ## [! #???????????# #??? | | ????# # ###########?# #??? | | ????# + lg # ### ##?? | | ????# # # # ### | | ??########## ######## # !# | | ??# % # #??????# ! # [+% | | ??# # #??????# # # | | ??# """ # ################# """ """ # ### | | ??# """"" # #????????# """ """ ## #### | | ??# """"" + #????????# """ """ ## # | | ??# """"" # #????????############ #%"T | | ??# """ ### #???????????????????# %+ "" | +----------------------------------------------------+ Best States ------------- Heat Dissipation 45 Energy Generation 14 Energy Capacity 250 Matter Stores 300 Matter Capacity 300 Sight Range 16 Terrain Scan Density 10 Evasion (%) 55 Targeting Accuracy 16 Recoil Reduction 1 Offensive Hacking 10 Item Schematics ----------------- Datajack | -8/Materials | Scanalyzed Adv. Targeting Computer | -8/Materials | Scanalyzed Weight Redist. System | -8/Materials | Scanalyzed Carbon-fiber Leg | -8/Materials | Hacked VSS Leg | -8/Materials | Hacked Robot Schematics ------------------ None Fabricated ------------ Nothing Alien Tech Used ----------------- None Achievements -------------- None Challenges ------------ None Game ------ Seed PortableDamperChainsword Manual? 0 Play Time 00:28:03 Cumulative 35.7 hours Start 2022.10.18 @ 15:14:58 End 2022.10.18 @ 22:38:55 Sessions 3 Manual Loads 0 Difficulty Rogue Special Mode None Game No. 59 Rogue 59 Adventurer 0 Explorer 0 Win Type - Total 0 Types 0/0/0/0/0/0/0/0/0 Lore% 19 Gallery% 23 Achievement% 25 Wizard Run 0 Options --------- ASCII 0 Keyboard 0 Movement Numpad Keybinds 0 Fullscreen 2 Font 18/TerminusBold Map View 76x50 Tactical HUD 1 Map Filters NONE Filters NONE Steam 1 RUN: b119b12b-be3e-4e22-9846-b99313b486cc